[Event "22nd ETCC Women 2019"]
[Site "Batumi"]
[Date "2019.10.27"]
[Round "4.15"]
[White "Ozturk, Kubra"]
[Black "Buksa, Nataliya"]
[Result "1/2-1/2"]
[ECO "D37"]
[WhiteElo "2317"]
[BlackElo "2410"]
[Annotator "NA"]
[PlyCount "61"]
[EventDate "2019.10.24"]
[EventType "team-tourn"]
[EventCountry "GEO"]
[SourceTitle "playchess.com"]
[Source "ChessBase"]
[SourceQuality "1"]
[WhiteTeam "Turkey"]
[BlackTeam "Ukraine"]
[WhiteTeamCountry "TUR"]
[BlackTeamCountry "UKR"]
[TimeControl "40/5400+30:1800+30"]

1. d4 {[%emt 0:00:00]} d5 {[%emt 0:00:00]} 2. c4 {[%emt 0:00:00]} e6 {[%emt 0:00:00]} 3. Nf3 {[%emt 0:00:12]} Nf6 {[%emt 0:00:03]} 4. Nc3 {[%emt 0:00:25]} Nbd7 {[%emt 0:00:05]} 5. Qc2 {[%emt 0:00:20]} c5 {[%emt 0:00:17]} 6. cxd5 {[%emt 0:02:41]} Nxd5 {[%emt 0:00:12]} 7. Nxd5 {[%emt 0:11:10]} exd5 {[%emt 0:00:05]} 8. g3 {[%emt 0:01:01]} c4 {[%emt 0:00:05]} 9. Bg2 {[%emt 0:01:25]} Bb4+ {[%emt 0:00:05]} 10. Bd2 {[%emt 0:00:47]} Bxd2+ {[%emt 0:00:06]} 11. Nxd2 {[%emt 0:02:38]} Nf6 {[%emt 0:01:19]} 12. O-O {[%emt 0:19:49]} O-O {[%emt 0:00:10]} 13. e4 {[%emt 0:19:27]} dxe4 {[%emt 0:22:26]} 14. Nxe4 {[%emt 0:00:21]} Qxd4 {[%emt 0:01:04]} 15. Rad1 {[%emt 0:07:39]} Qe5 {[%emt 0:00:04]} 16. Nxf6+ {[%emt 0:05:22]} Qxf6 {[%emt 0:00:05]} 17. Qxc4 {[%emt 0:00:14]} Qxb2 {[%emt 0:09:21]} 18. Rb1 {[%emt 0:00:27]} Be6 {[%emt 0:00:41]} 19. Bd5 {[%emt 0:04:51]} Bxd5 {[%emt 0:10:55]} 20. Qxd5 {[%emt 0:00:02]} Qc3 {[%emt 0:00:04]} 21. Rxb7 {[%emt 0:02:02]} Rad8 {[%emt 0:00:04]} 22. Qb3 {[%emt 0:01:00]} Qxb3 {[%emt 0:04:01]} 23. axb3 {[%emt 0:00:27]} Rb8 {[%emt 0:00:03]} 24. Rxa7 {[%emt 0:00:16]} Rxb3 {[%emt 0:00:04]} 25. h4 {[%emt 0:02:23]} h5 {[%emt 0:00:11]} 26. Rfa1 {[%emt 0:00:29]} g6 {[%emt 0:00:10]} 27. Ra8 {[%emt 0:00:49]} Rxa8 {[%emt 0:00:15]} 28. Rxa8+ {[%emt 0:00:03]} Kg7 {[%emt 0:00:04]} 29. Ra6 {[%emt 0:00:24]} Rf3 {[%emt 0:00:37]} 30. Kg2 {[%emt 0:00:11]} Rf5 {[%emt 0:00:51]} 31. Rb6 {[%emt 0:00:13]} 1/2-1/2

[Event "22nd ETCC Women 2019"]
[Site "Batumi"]
[Date "2019.10.27"]
[Round "4.15"]
[White "Norlamo, Sarabella"]
[Black "Esadze, Tamari"]
[Result "1-0"]
[ECO "E18"]
[WhiteElo "2020"]
[BlackElo "1885"]
[Annotator "NA"]
[PlyCount "177"]
[EventDate "2019.10.24"]
[EventType "team-tourn"]
[EventCountry "GEO"]
[SourceTitle "playchess.com"]
[Source "ChessBase"]
[SourceQuality "1"]
[WhiteTeam "Finland"]
[BlackTeam "Georgia"]
[WhiteTeamCountry "FIN"]
[BlackTeamCountry "GEO"]
[TimeControl "40/5400+30:1800+30"]

1. d4 {[%emt 0:00:00]} Nf6 {[%emt 0:00:00]} 2. c4 {[%emt 0:00:00]} e6 {[%emt 0:00:00]} 3. Nf3 {[%emt 0:00:00]} b6 {[%emt 0:00:00]} 4. g3 {[%emt 0:00:00]} Bb7 {[%emt 0:00:00]} 5. Bg2 {[%emt 0:00:04]} Be7 {[%emt 0:00:00]} 6. O-O {[%emt 0:00:59]} O-O {[%emt 0:00:08]} 7. Nc3 {[%emt 0:00:12]} Ne4 {[%emt 0:03:07]} 8. Nxe4 {[%emt 0:14:42]} Bxe4 {[%emt 0:00:04]} 9. Bf4 {[%emt 0:04:45]} d6 {[%emt 0:09:01]} 10. Rc1 {[%emt 0:03:40]} c5 {[%emt 0:08:54]} 11. d5 {[%emt 0:09:58]} e5 {[%emt 0:04:33]} 12. Bd2 {[%emt 0:02:10]} f5 {[%emt 0:08:13]} 13. Bc3 {[%emt 0:07:03]} Nd7 {[%emt 0:08:15]} 14. Nd2 {[%emt 0:07:44]} Bxg2 {[%emt 0:00:14]} 15. Kxg2 {[%emt 0:00:02]} Bg5 {[%emt 0:05:03]} 16. Rc2 {[%emt 0:06:50]} Qe7 {[%emt 0:03:41]} 17. Qe1 {[%emt 0:02:51]} Rae8 {[%emt 0:08:15]} 18. e4 {[%emt 0:04:06]} Bxd2 {[%emt 0:09:49]} 19. Bxd2 {[%emt 0:00:40]} f4 {[%emt 0:03:11]} 20. f3 {[%emt 0:02:32]} h5 {[%emt 0:04:41]} 21. Kf2 {[%emt 0:04:54]} Nf6 {[%emt 0:04:19]} 22. gxf4 {[%emt 0:04:55]} exf4 {[%emt 0:00:10]} 23. Bc3 {[%emt 0:00:08]} Nd7 {[%emt 0:10:14]} 24. Rg1 {[%emt 0:03:07]} Ne5 {[%emt 0:00:07]} 25. Bxe5 {[%emt 0:00:23]} Qxe5 {[%emt 0:01:19]} 26. Qc3 {[%emt 0:00:49]} Kh7 {[%emt 0:05:27]} 27. h4 {[%emt 0:03:42]} g6 {[%emt 0:01:22]} 28. Rg5 {[%emt 0:06:31]} Qxc3 {[%emt 0:00:06]} 29. Rxc3 {[%emt 0:00:09]} Kg7 {[%emt 0:00:46]} 30. Rc1 {[%emt 0:00:30]} Kf6 {[%emt 0:00:22]} 31. Rcg1 {[%emt 0:01:05]} Rg8 {[%emt 0:00:03]} 32. Ke2 {[%emt 0:02:48]} Rb8 {[%emt 0:01:39]} 33. b3 {[%emt 0:01:15]} Rbe8 {[%emt 0:00:10]} 34. Kd3 {[%emt 0:00:30]} Rg7 {[%emt 0:00:21]} 35. Kc3 {[%emt 0:00:52]} Rc8 {[%emt 0:01:14]} 36. Re1 {[%emt 0:01:10]} Re7 {[%emt 0:00:27]} 37. Reg1 {[%emt 0:00:57]} Rg7 {[%emt 0:00:03]} 38. Kd3 {[%emt 0:01:25]} Re8 {[%emt 0:00:14]} 39. Kc3 {[%emt 0:00:11]} Rc8 {[%emt 0:00:04]} 40. a3 {[%emt 0:00:00]} a6 {[%emt 0:00:00]} 41. Kd3 {[%emt 0:11:19]} Re8 {[%emt 0:12:25]} 42. R1g2 {[%emt 0:04:03]} Rc8 {[%emt 0:02:41]} 43. Rb2 {[%emt 0:01:51]} b5 {[%emt 0:06:41]} 44. cxb5 {[%emt 0:01:51]} axb5 {[%emt 0:00:02]} 45. a4 {[%emt 0:00:50]} b4 {[%emt 0:03:51]} 46. Kc4 {[%emt 0:01:27]} Ra7 {[%emt 0:01:50]} 47. Rbg2 {[%emt 0:01:03]} Rg7 {[%emt 0:00:04]} 48. Rg1 {[%emt 0:01:08]} Re8 {[%emt 0:01:25]} 49. Kb5 {[%emt 0:01:21]} Ree7 {[%emt 0:00:59]} 50. Re1 {[%emt 0:03:13]} Rb7+ {[%emt 0:02:10]} 51. Kc4 {[%emt 0:00:21]} Rge7 {[%emt 0:00:26]} 52. Kd3 {[%emt 0:03:19]} Rb8 {[%emt 0:01:51]} 53. Kc4 {[%emt 0:00:22]} Rbb7 {[%emt 0:00:14]} 54. e5+ {[%emt 0:05:00]} dxe5 {[%emt 0:00:46]} 55. d6 {[%emt 0:00:05]} Re6 {[%emt 0:03:32]} 56. Kxc5 {[%emt 0:00:02]} Rd7 {[%emt 0:00:04]} 57. Rd1 {[%emt 0:02:23]} e4 {[%emt 0:01:27]} 58. fxe4 {[%emt 0:02:37]} Rxe4 {[%emt 0:00:03]} 59. Kc6 {[%emt 0:00:41]} Rd8 {[%emt 0:00:21]} 60. Kc7 {[%emt 0:00:30]} Ree8 {[%emt 0:00:51]} 61. d7 {[%emt 0:00:46]} Rg8 {[%emt 0:00:45]} 62. Rd4 {[%emt 0:00:56]} f3 {[%emt 0:00:42]} 63. Rxb4 {[%emt 0:00:46]} f2 {[%emt 0:00:11]} 64. Rf4+ {[%emt 0:00:30]} Ke6 {[%emt 0:00:02]} 65. Rxg6+ {[%emt 0:01:49]} Rxg6 {[%emt 0:01:35]} 66. Kxd8 {[%emt 0:00:01]} Rg7 {[%emt 0:01:37]} 67. Rxf2 {[%emt 0:00:35]} Rxd7+ {[%emt 0:00:02]} 68. Kc8 {[%emt 0:00:12]} Rd4 {[%emt 0:00:41]} 69. a5 {[%emt 0:00:47]} Rb4 {[%emt 0:00:54]} 70. a6 {[%emt 0:00:57]} Rxb3 {[%emt 0:00:06]} 71. Ra2 {[%emt 0:00:30]} Rc3+ {[%emt 0:00:13]} 72. Kb7 {[%emt 0:00:23]} Rb3+ {[%emt 0:00:06]} 73. Kc6 {[%emt 0:00:10]} Rc3+ {[%emt 0:00:15]} 74. Kb5 {[%emt 0:00:11]} Rb3+ {[%emt 0:00:08]} 75. Kc4 {[%emt 0:00:09]} Rb8 {[%emt 0:00:03]} 76. a7 {[%emt 0:00:27]} Ra8 {[%emt 0:00:02]} 77. Kd4 {[%emt 0:00:32]} Kf5 {[%emt 0:00:31]} 78. Ke3 {[%emt 0:00:26]} Kg4 {[%emt 0:00:39]} 79. Ra4+ {[%emt 0:00:01]} Kg3 {[%emt 0:00:42]} 80. Ke2 {[%emt 0:00:37]} Re8+ {[%emt 0:00:42]} 81. Kf1 {[%emt 0:00:38]} Ra8 {[%emt 0:00:11]} 82. Ke1 {[%emt 0:00:55]} Re8+ {[%emt 0:00:04]} 83. Kd2 {[%emt 0:00:10]} Ra8 {[%emt 0:00:14]} 84. Ke3 {[%emt 0:00:45]} Re8+ {[%emt 0:02:13]} 85. Kd4 {[%emt 0:00:40]} Ra8 {[%emt 0:01:43]} 86. Ke5 {[%emt 0:00:41]} Re8+ {[%emt 0:00:48]} 87. Kf5 {[%emt 0:00:09]} Rf8+ {[%emt 0:00:30]} 88. Kg5 {[%emt 0:00:02]} Ra8 {[%emt 0:00:27]} 89. Kxh5 {[%emt 0:00:17]} 1-0

[Event "22nd ETCC Women 2019"]
[Site "Batumi"]
[Date "2019.10.27"]
[Round "4.16"]
[White "Zhukova, Natalia"]
[Black "Duran, Esma Doga"]
[Result "1-0"]
[ECO "B38"]
[WhiteElo "2333"]
[BlackElo "1878"]
[Annotator "NA"]
[PlyCount "119"]
[EventDate "2019.10.24"]
[EventType "team-tourn"]
[EventCountry "GEO"]
[SourceTitle "playchess.com"]
[Source "ChessBase"]
[SourceQuality "1"]
[WhiteTeam "Ukraine"]
[BlackTeam "Turkey"]
[WhiteTeamCountry "UKR"]
[BlackTeamCountry "TUR"]
[TimeControl "40/5400+30:1800+30"]

1. c4 {[%emt 0:00:00]} c5 {[%emt 0:00:48]} 2. Nf3 {[%emt 0:00:07]} Nc6 {[%emt 0:00:58]} 3. d4 {[%emt 0:00:35]} cxd4 {[%emt 0:00:22]} 4. Nxd4 {[%emt 0:00:07]} g6 {[%emt 0:01:12]} 5. e4 {[%emt 0:00:44]} Bg7 {[%emt 0:00:34]} 6. Be3 {[%emt 0:01:32]} Nf6 {[%emt 0:04:43]} 7. Nc3 {[%emt 0:00:08]} d6 {[%emt 0:03:38]} 8. Be2 {[%emt 0:00:19]} O-O {[%emt 0:01:34]} 9. O-O {[%emt 0:00:14]} Bd7 {[%emt 0:04:17]} 10. h3 {[%emt 0:00:39]} Nxd4 {[%emt 0:03:23]} 11. Bxd4 {[%emt 0:00:09]} Bc6 {[%emt 0:00:20]} 12. Qc2 {[%emt 0:01:34]} Qc7 {[%emt 0:05:50]} 13. Rad1 {[%emt 0:01:56]} Rac8 {[%emt 0:14:17]} 14. Rfe1 {[%emt 0:03:39]} b6 {[%emt 0:03:00]} 15. Nd5 {[%emt 0:26:33]} Bxd5 {[%emt 0:15:26]} 16. exd5 {[%emt 0:00:16]} Nd7 {[%emt 0:03:54]} 17. Bxg7 {[%emt 0:05:03]} Kxg7 {[%emt 0:00:01]} 18. Bg4 {[%emt 0:18:58]} h5 {[%emt 0:05:30]} 19. Qc3+ {[%emt 0:16:57]} Kg8 {[%emt 0:06:12]} 20. Bxh5 {[%emt 0:07:21]} gxh5 {[%emt 0:11:11]} 21. Qg3+ {[%emt 0:00:06]} Kh7 {[%emt 0:02:32]} 22. Rxe7 {[%emt 0:00:11]} Rce8 {[%emt 0:02:04]} 23. Rde1 {[%emt 0:01:50]} Rxe7 {[%emt 0:00:42]} 24. Rxe7 {[%emt 0:00:03]} Qxc4 {[%emt 0:05:15]} 25. Rxd7 {[%emt 0:00:16]} Qxd5 {[%emt 0:00:53]} 26. Rxd6 {[%emt 0:00:30]} Qf5 {[%emt 0:01:06]} 27. Qe3 {[%emt 0:01:00]} Rc8 {[%emt 0:01:48]} 28. Kh2 {[%emt 0:07:18]} f6 {[%emt 0:01:14]} 29. Qd4 {[%emt 0:03:18]} Kg6 {[%emt 0:00:47]} 30. Rd5 {[%emt 0:00:09]} Qe6 {[%emt 0:00:22]} 31. Qd3+ {[%emt 0:00:25]} Kh6 {[%emt 0:00:44]} 32. Qd2+ {[%emt 0:02:47]} Kg6 {[%emt 0:00:13]} 33. Qd3+ {[%emt 0:00:01]} Kh6 {[%emt 0:00:00]} 34. Qf3 {[%emt 0:00:09]} Qf7 {[%emt 0:00:53]} 35. Qf4+ {[%emt 0:00:34]} Kg7 {[%emt 0:00:22]} 36. Rd3 {[%emt 0:01:53]} Rc5 {[%emt 0:00:57]} 37. Rg3+ {[%emt 0:00:14]} Kh7 {[%emt 0:00:35]} 38. Qe4+ {[%emt 0:00:11]} Kh6 {[%emt 0:00:38]} 39. b3 {[%emt 0:01:06]} Re5 {[%emt 0:00:33]} 40. Qf4+ {[%emt 0:00:00]} Kh7 {[%emt 0:00:00]} 41. Rf3 {[%emt 0:02:06]} Re6 {[%emt 0:04:50]} 42. Qf5+ {[%emt 0:01:28]} Kh6 {[%emt 0:00:55]} 43. g4 {[%emt 0:13:14]} Qc7+ {[%emt 0:10:11]} 44. Kg2 {[%emt 0:00:27]} hxg4 {[%emt 0:02:56]} 45. hxg4 {[%emt 0:00:29]} Qc6 {[%emt 0:03:00]} 46. Kh2 {[%emt 0:07:57]} Qc7+ {[%emt 0:00:14]} 47. Rg3 {[%emt 0:04:13]} Qe5 {[%emt 0:01:12]} 48. Kg2 {[%emt 0:03:53]} Qxf5 {[%emt 0:04:40]} 49. gxf5 {[%emt 0:00:02]} Rd6 {[%emt 0:02:29]} 50. Kf3 {[%emt 0:00:36]} Kh7 {[%emt 0:01:14]} 51. Rg6 {[%emt 0:00:50]} Rc6 {[%emt 0:00:47]} 52. Ke4 {[%emt 0:00:22]} Rd6 {[%emt 0:00:02]} 53. a4 {[%emt 0:01:26]} a6 {[%emt 0:01:34]} 54. f4 {[%emt 0:00:21]} b5 {[%emt 0:00:57]} 55. axb5 {[%emt 0:00:38]} axb5 {[%emt 0:00:03]} 56. Rg3 {[%emt 0:00:08]} b4 {[%emt 0:02:35]} 57. Rd3 {[%emt 0:00:13]} Rc6 {[%emt 0:00:54]} 58. Rd4 {[%emt 0:00:07]} Rb6 {[%emt 0:00:26]} 59. Kd5 {[%emt 0:00:36]} Rb5+ {[%emt 0:00:42]} 60. Ke4 1-0

[Event "22nd ETCC Women 2019"]
[Site "Batumi"]
[Date "2019.10.27"]
[Round "4.16"]
[White "Lomaia, Diana"]
[Black "Lehtinen, Helja"]
[Result "1-0"]
[ECO "E95"]
[WhiteElo "1861"]
[BlackElo "1802"]
[Annotator "NA"]
[PlyCount "119"]
[EventDate "2019.10.24"]
[EventType "team-tourn"]
[EventCountry "GEO"]
[SourceTitle "playchess.com"]
[Source "ChessBase"]
[SourceQuality "1"]
[WhiteTeam "Georgia"]
[BlackTeam "Finland"]
[WhiteTeamCountry "GEO"]
[BlackTeamCountry "FIN"]
[TimeControl "40/5400+30:1800+30"]

1. d4 {[%emt 0:00:00]} Nf6 {[%emt 0:00:00]} 2. c4 {[%emt 0:00:00]} g6 {[%emt 0:00:00]} 3. Nc3 {[%emt 0:00:00]} Bg7 {[%emt 0:00:00]} 4. e4 {[%emt 0:00:04]} d6 {[%emt 0:00:04]} 5. Be2 {[%emt 0:00:19]} O-O {[%emt 0:00:25]} 6. Nf3 {[%emt 0:00:19]} Nbd7 {[%emt 0:00:52]} 7. O-O {[%emt 0:00:59]} e5 {[%emt 0:00:51]} 8. Re1 {[%emt 0:01:04]} c6 {[%emt 0:01:20]} 9. Bf1 {[%emt 0:01:37]} exd4 {[%emt 0:03:34]} 10. Nxd4 {[%emt 0:00:17]} Re8 {[%emt 0:00:09]} 11. Kh1 {[%emt 0:06:03]} Nc5 {[%emt 0:04:02]} 12. f3 {[%emt 0:00:55]} a5 {[%emt 0:01:05]} 13. Rb1 {[%emt 0:00:52]} Qc7 {[%emt 0:14:08]} 14. Be3 {[%emt 0:02:12]} Nfd7 {[%emt 0:03:38]} 15. Qd2 {[%emt 0:08:42]} Ne5 {[%emt 0:20:55]} 16. b3 {[%emt 0:02:05]} Ne6 {[%emt 0:10:17]} 17. Red1 {[%emt 0:11:58]} Rd8 {[%emt 0:07:30]} 18. a3 {[%emt 0:05:13]} Nxd4 {[%emt 0:12:13]} 19. Bxd4 {[%emt 0:00:16]} Be6 {[%emt 0:00:16]} 20. Qf2 {[%emt 0:13:02]} Qe7 {[%emt 0:10:01]} 21. Rd2 {[%emt 0:12:56]} c5 {[%emt 0:01:06]} 22. Bxe5 {[%emt 0:01:12]} Bxe5 {[%emt 0:00:14]} 23. Nb5 {[%emt 0:06:44]} Bg7 {[%emt 0:03:29]} 24. Rbd1 {[%emt 0:10:37]} Bf8 {[%emt 0:01:43]} 25. Qg3 {[%emt 0:06:53]} Ra6 {[%emt 0:00:58]} 26. e5 {[%emt 0:00:53]} Raa8 {[%emt 0:03:24]} 27. Nxd6 {[%emt 0:02:51]} f6 {[%emt 0:00:42]} 28. exf6 {[%emt 0:01:42]} Qxf6 {[%emt 0:00:22]} 29. Ne4 {[%emt 0:01:21]} Qe7 {[%emt 0:00:04]} 30. Qe5 {[%emt 0:00:54]} Rxd2 {[%emt 0:00:57]} 31. Rxd2 {[%emt 0:00:06]} Bg7 {[%emt 0:00:33]} 32. Qxc5 {[%emt 0:00:31]} Qxc5 {[%emt 0:00:33]} 33. Nxc5 {[%emt 0:00:04]} Bf5 {[%emt 0:00:24]} 34. Nxb7 {[%emt 0:02:05]} Bc3 {[%emt 0:00:21]} 35. Rd8+ {[%emt 0:01:35]} Rxd8 {[%emt 0:00:18]} 36. Nxd8 {[%emt 0:00:05]} Bb2 {[%emt 0:00:04]} 37. Nc6 {[%emt 0:00:47]} Bxa3 {[%emt 0:00:42]} 38. Be2 {[%emt 0:01:08]} a4 {[%emt 0:00:31]} 39. bxa4 {[%emt 0:00:22]} Bd7 {[%emt 0:00:14]} 40. Ne5 {[%emt 0:00:00]} Bxa4 {[%emt 0:00:00]} 41. f4 {[%emt 0:05:15]} Kg7 {[%emt 0:04:55]} 42. g3 h5 43. Bd3 {[%emt 0:08:33]} Be8 {[%emt 0:06:03]} 44. Kg2 {[%emt 0:02:10]} Bd6 {[%emt 0:02:33]} 45. Be4 {[%emt 0:02:52]} Kf6 {[%emt 0:02:57]} 46. Nd3 {[%emt 0:03:02]} g5 {[%emt 0:02:12]} 47. Kf3 {[%emt 0:02:33]} Bd7 {[%emt 0:02:02]} 48. Ke3 {[%emt 0:03:15]} Bc7 {[%emt 0:05:34]} 49. Kd4 {[%emt 0:02:03]} h4 50. Ne5 {[%emt 0:02:15]} Bc8 {[%emt 0:03:21]} 51. fxg5+ {[%emt 0:00:56]} Ke6 {[%emt 0:01:38]} 52. Ng6 {[%emt 0:02:13]} hxg3 {[%emt 0:00:34]} 53. hxg3 {[%emt 0:00:07]} Bxg3 {[%emt 0:00:15]} 54. Bd5+ {[%emt 0:00:34]} Kd7 {[%emt 0:03:42]} 55. Ne5+ {[%emt 0:01:05]} Ke7 {[%emt 0:00:54]} 56. Ng6+ {[%emt 0:01:01]} Kd7 {[%emt 0:00:12]} 57. Ke4 {[%emt 0:00:25]} Kd6 {[%emt 0:00:49]} 58. Nf4 {[%emt 0:00:26]} Ke7 {[%emt 0:00:30]} 59. Nh5 {[%emt 0:00:17]} Kd6 {[%emt 0:01:10]} 60. Nxg3 {[%emt 0:00:14] Kxd5+} 1-0

[Event "22nd ETCC Women 2019"]
[Site "Batumi"]
[Date "2019.10.27"]
[Round "4.17"]
[White "Mammadzada, Gunay"]
[Black "Bulmaga, Irina"]
[Result "1-0"]
[ECO "E01"]
[WhiteElo "2427"]
[BlackElo "2442"]
[Annotator "NA"]
[PlyCount "81"]
[EventDate "2019.10.24"]
[EventType "team-tourn"]
[EventCountry "GEO"]
[SourceTitle "playchess.com"]
[Source "ChessBase"]
[SourceQuality "1"]
[WhiteTeam "Azerbaijan"]
[BlackTeam "Romania"]
[WhiteTeamCountry "AZE"]
[BlackTeamCountry "ROU"]
[TimeControl "40/5400+30:1800+30"]

1. d4 {[%emt 0:00:00]} Nf6 {[%emt 0:00:00]} 2. c4 {[%emt 0:00:00]} e6 {[%emt 0:00:00]} 3. g3 {[%emt 0:00:00]} d5 {[%emt 0:00:24]} 4. Bg2 {[%emt 0:00:10]} Bb4+ {[%emt 0:00:42]} 5. Bd2 {[%emt 0:00:14]} Be7 {[%emt 0:00:16]} 6. Nf3 {[%emt 0:00:31]} O-O {[%emt 0:00:18]} 7. O-O {[%emt 0:00:35]} c6 {[%emt 0:01:45]} 8. Bf4 {[%emt 0:03:45]} Nbd7 {[%emt 0:00:31]} 9. Nc3 {[%emt 0:05:22]} b6 {[%emt 0:12:25]} 10. cxd5 {[%emt 0:11:28]} Nxd5 {[%emt 0:01:14]} 11. Nxd5 {[%emt 0:11:52]} cxd5 {[%emt 0:01:00]} 12. Qa4 {[%emt 0:04:42]} a5 {[%emt 0:15:00]} 13. Rfc1 {[%emt 0:05:53]} Ba6 {[%emt 0:04:14]} 14. Qd1 {[%emt 0:08:12]} Ra7 {[%emt 0:04:34]} 15. h4 {[%emt 0:03:46]} b5 {[%emt 0:04:36]} 16. Rc2 {[%emt 0:04:41]} Nb6 {[%emt 0:04:07]} 17. Ne5 {[%emt 0:02:22]} Bb7 18. Nxf7 {[%emt 0:02:28]} Rxf7 {[%emt 0:03:17]} 19. Bc7 {[%emt 0:00:05]} Qf8 {[%emt 0:00:37]} 20. Bxb6 {[%emt 0:00:14]} Ra6 {[%emt 0:00:31]} 21. Bc5 {[%emt 0:04:33]} Bxc5 {[%emt 0:10:51]} 22. Rxc5 {[%emt 0:00:22]} e5 {[%emt 0:08:07]} 23. Rxb5 {[%emt 0:06:24]} Bc6 {[%emt 0:03:10]} 24. Rc5 {[%emt 0:00:49]} e4 {[%emt 0:01:46]} 25. Rac1 {[%emt 0:03:07]} Qd6 {[%emt 0:00:40]} 26. Qc2 {[%emt 0:07:10]} Rf6 {[%emt 0:01:33]} 27. e3 {[%emt 0:03:19]} Qe6 {[%emt 0:04:18]} 28. Qb3 {[%emt 0:02:00]} a4 {[%emt 0:01:44]} 29. Qb8+ {[%emt 0:01:07]} Rf8 {[%emt 0:02:11]} 30. Qe5 {[%emt 0:01:07]} Re8 {[%emt 0:01:31]} 31. Qxe6+ {[%emt 0:02:53]} Rxe6 {[%emt 0:00:02]} 32. Bxe4 {[%emt 0:00:33]} dxe4 {[%emt 0:00:17]} 33. d5 {[%emt 0:00:06]} Bxd5 {[%emt 0:00:48]} 34. Rxd5 {[%emt 0:00:05]} Re8 {[%emt 0:03:26]} 35. Rc7 {[%emt 0:02:11]} Rf8 {[%emt 0:02:34]} 36. h5 {[%emt 0:03:50]} Rh6 {[%emt 0:01:51]} 37. Rdd7 {[%emt 0:00:54]} Rxh5 {[%emt 0:00:11]} 38. Rxg7+ {[%emt 0:00:04]} Kh8 {[%emt 0:00:04]} 39. Rge7 {[%emt 0:00:13]} Rh6 {[%emt 0:04:37]} 40. Rxe4 {[%emt 0:00:00]} Rhf6 {[%emt 0:00:00]} 41. Ree7 {[%emt 0:01:26]} 1-0

[Event "22nd ETCC Women 2019"]
[Site "Batumi"]
[Date "2019.10.27"]
[Round "4.17"]
[White "Worek, Joanna"]
[Black "Stojkovska, Monika"]
[Result "1-0"]
[ECO "E17"]
[WhiteElo "2319"]
[BlackElo "2108"]
[Annotator "NA"]
[PlyCount "65"]
[EventDate "2019.10.24"]
[EventType "team-tourn"]
[EventCountry "GEO"]
[SourceTitle "playchess.com"]
[Source "ChessBase"]
[SourceQuality "1"]
[WhiteTeam "Czech Republic"]
[BlackTeam "Macedonia"]
[WhiteTeamCountry "CZE"]
[BlackTeamCountry "MKD"]
[TimeControl "40/5400+30:1800+30"]

1. d4 {[%emt 0:00:00]} e6 {[%emt 0:00:00]} 2. c4 {[%emt 0:00:00]} Nf6 {[%emt 0:00:00]} 3. Nf3 {[%emt 0:00:00]} b6 {[%emt 0:00:00]} 4. g3 {[%emt 0:00:00]} Bb7 {[%emt 0:00:07]} 5. Bg2 {[%emt 0:00:00]} Be7 {[%emt 0:00:10]} 6. O-O {[%emt 0:00:13]} O-O {[%emt 0:00:05]} 7. d5 {[%emt 0:01:43]} exd5 {[%emt 0:22:47]} 8. Nh4 {[%emt 0:00:29]} c6 {[%emt 0:01:52]} 9. cxd5 {[%emt 0:00:14]} Nxd5 {[%emt 0:01:27]} 10. Nf5 {[%emt 0:00:07]} Bc5 {[%emt 0:03:16]} 11. e4 {[%emt 0:01:29]} Ne7 {[%emt 0:00:38]} 12. Nxg7 {[%emt 0:01:00]} Kxg7 {[%emt 0:10:29]} 13. b4 {[%emt 0:00:06]} Bxb4 {[%emt 0:06:24]} 14. Qd4+ {[%emt 0:00:05]} f6 {[%emt 0:00:31]} 15. Qxb4 {[%emt 0:00:06]} Ng6 {[%emt 0:06:35]} 16. h4 {[%emt 0:03:31]} c5 {[%emt 0:07:57]} 17. Qd2 {[%emt 0:01:30]} Nc6 {[%emt 0:00:44]} 18. Bb2 {[%emt 0:07:40]} Nd4 {[%emt 0:12:12]} 19. Bxd4 {[%emt 0:06:19]} cxd4 {[%emt 0:00:05]} 20. Qxd4 {[%emt 0:01:07]} Qe7 {[%emt 0:00:16]} 21. Nd2 {[%emt 0:02:29]} Rad8 {[%emt 0:04:32]} 22. Rac1 {[%emt 0:07:40]} d5 {[%emt 0:03:50]} 23. exd5 {[%emt 0:06:37]} Bxd5 {[%emt 0:00:35]} 24. Bxd5 {[%emt 0:03:41]} Qd7 {[%emt 0:01:12]} 25. Ne4 {[%emt 0:04:03]} Ne5 {[%emt 0:01:26]} 26. f4 {[%emt 0:17:21]} Ng6 {[%emt 0:10:28]} 27. Rcd1 {[%emt 0:09:22]} Ne7 {[%emt 0:04:38]} 28. Nc3 {[%emt 0:00:44]} Qh3 {[%emt 0:01:03]} 29. Qf2 {[%emt 0:02:55]} Nf5 {[%emt 0:00:32]} 30. Ne2 {[%emt 0:07:49]} Rde8 {[%emt 0:00:17]} 31. Bg2 {[%emt 0:00:43]} Qg4 {[%emt 0:00:09]} 32. Qf3 {[%emt 0:00:15]} Qxf3 {[%emt 0:00:22]} 33. Bxf3 {[%emt 0:00:14]} 1-0

[Event "22nd ETCC Women 2019"]
[Site "Batumi"]
[Date "2019.10.27"]
[Round "4.18"]
[White "Peptan, Corina-Isabela"]
[Black "Balajayeva, Khanim"]
[Result "1-0"]
[ECO "D37"]
[WhiteElo "2371"]
[BlackElo "2368"]
[Annotator "NA"]
[PlyCount "83"]
[EventDate "2019.10.24"]
[EventType "team-tourn"]
[EventCountry "GEO"]
[SourceTitle "playchess.com"]
[Source "ChessBase"]
[SourceQuality "1"]
[WhiteTeam "Romania"]
[BlackTeam "Azerbaijan"]
[WhiteTeamCountry "ROU"]
[BlackTeamCountry "AZE"]
[TimeControl "40/5400+30:1800+30"]

1. d4 {[%emt 0:00:00]} Nf6 {[%emt 0:00:00]} 2. c4 {[%emt 0:00:00]} e6 {[%emt 0:00:00]} 3. Nf3 {[%emt 0:00:00]} d5 {[%emt 0:00:00]} 4. Nc3 {[%emt 0:00:00]} Be7 {[%emt 0:00:14]} 5. Bf4 {[%emt 0:00:10]} O-O {[%emt 0:00:24]} 6. e3 {[%emt 0:00:06]} b6 {[%emt 0:00:03]} 7. Rc1 {[%emt 0:00:11]} c5 {[%emt 0:04:41]} 8. cxd5 {[%emt 0:07:39]} Nxd5 {[%emt 0:09:18]} 9. Nxd5 {[%emt 0:00:13]} Qxd5 {[%emt 0:11:34]} 10. Bc4 {[%emt 0:03:34]} Qd8 {[%emt 0:01:04]} 11. O-O {[%emt 0:02:27]} Bb7 {[%emt 0:00:32]} 12. Qe2 {[%emt 0:02:09]} cxd4 {[%emt 0:12:17]} 13. Nxd4 {[%emt 0:06:49]} Bc5 {[%emt 0:00:48]} 14. Nb3 {[%emt 0:05:40]} Qf6 {[%emt 0:03:28]} 15. Nxc5 {[%emt 0:00:17]} bxc5 {[%emt 0:00:02]} 16. Rfd1 {[%emt 0:01:48]} Rc8 {[%emt 0:02:31]} 17. Rd2 {[%emt 0:10:10]} Nc6 {[%emt 0:05:45]} 18. Ba6 {[%emt 0:00:21]} Bxa6 {[%emt 0:01:15]} 19. Qxa6 {[%emt 0:00:07]} Nb4 {[%emt 0:06:51]} 20. Qc4 {[%emt 0:00:11]} Nd5 {[%emt 0:06:56]} 21. Bg3 {[%emt 0:01:25]} Nb6 {[%emt 0:02:27]} 22. Qe4 {[%emt 0:04:36]} c4 {[%emt 0:04:09]} 23. Be5 {[%emt 0:06:59]} Qg6 {[%emt 0:07:23]} 24. Qf3 {[%emt 0:05:53]} Rd8 {[%emt 0:03:10]} 25. Rd4 {[%emt 0:09:11]} Qf5 {[%emt 0:06:20]} 26. Qxf5 {[%emt 0:09:18]} exf5 {[%emt 0:00:03]} 27. Rxd8+ {[%emt 0:02:04]} Rxd8 {[%emt 0:00:04]} 28. g3 {[%emt 0:00:39]} f6 {[%emt 0:02:12]} 29. Bd4 {[%emt 0:00:08]} Rc8 {[%emt 0:00:10]} 30. Rc3 {[%emt 0:01:48]} Kf7 {[%emt 0:02:58]} 31. Ra3 {[%emt 0:00:09]} Rc7 {[%emt 0:00:04]} 32. Kf1 {[%emt 0:02:38]} Ke6 {[%emt 0:03:58]} 33. h4 {[%emt 0:00:58]} h5 {[%emt 0:01:53]} 34. Ra5 {[%emt 0:00:12]} g5 {[%emt 0:01:16]} 35. hxg5 {[%emt 0:00:18]} fxg5 {[%emt 0:00:37]} 36. Re5+ {[%emt 0:00:07]} Kd6 {[%emt 0:01:22]} 37. Rxf5 {[%emt 0:00:06]} Nd5 {[%emt 0:00:10]} 38. Rxg5 {[%emt 0:00:14]} Rh7 {[%emt 0:00:33]} 39. Kg2 {[%emt 0:03:24]} Ke6 {[%emt 0:01:56]} 40. a3 {[%emt 0:00:00]} Kd6 {[%emt 0:00:00]} 41. Rg6+ {[%emt 0:04:21]} Ke7 {[%emt 0:05:18]} 42. Ra6 {[%emt 0:00:31]} 1-0